Workbook

Sheet input
I3: Messsystemanalyse Verfahren 5 Stabiltität - Messbeständigkeit (nach Bosch Heft Nr. 10) | T3: Teil | AC3: Standort
T4: Arbeitsgang | AC4: erstellt von
T5: Merkmal | AC5: Datum
C6: Messwerte | D6: 1 | E6: 2 | F6: 3 | G6: 4 | H6: 5 | I6: 6 | J6: 7 | K6: 8 | L6: 9 | M6: 10 | N6: 11 | O6: 12 | P6: 13 | Q6: 14 | R6: 15 | S6: 16 | T6: 17 | U6: 18 | V6: 19 | W6: 20 | X6: 21 | Y6: 22 | Z6: 23 | AA6: 24 | AB6: 25 | AC6: Bezeichnung Messmittel
C7: X1 | D7: 2 | E7: 4 | F7: 3 | G7: 3 | H7: 2 | I7: 0 | J7: 1 | K7: 1 | L7: 0 | M7: 4 | N7: 2 | O7: 3 | P7: 2 | Q7: 2 | R7: 4 | S7: 3 | T7: 2 | U7: 2 | V7: 1 | W7: 3 | X7: 4 | Y7: 2 | Z7: 4 | AA7: 5 | AB7: 2 | AC7: Messmittel Nr.
C8: X2 | D8: 1 | E8: 4 | F8: 2 | G8: 1 | H8: 1 | I8: 1 | J8: 1 | K8: 2 | L8: 0 | M8: 4 | N8: 1 | O8: 1 | P8: 1 | Q8: 0 | R8: 3 | S8: 2 | T8: 2 | U8: 2 | V8: 2 | W8: 3 | X8: 3 | Y8: 0 | Z8: 3 | AA8: 4 | AB8: 1 | AC8: Bezeichnung Einstellnormal
C9: X3 | D9: 1 | E9: 3 | F9: 2 | G9: 4 | H9: 2 | I9: -1 | J9: 0 | K9: 2 | L9: 1 | M9: 3 | N9: 2 | O9: 1 | P9: 2 | Q9: 1 | R9: 3 | S9: 1 | T9: 0 | U9: 2 | V9: 1 | W9: 2 | X9: 4 | Y9: 1 | Z9: 2 | AA9: 4 | AB9: 1 | AC9: Referenzwert xm | AD9: 6.002 | AE9: mm
C10: X4 | D10: 1 | E10: 3 | F10: 2 | G10: 4 | H10: 2 | I10: -1 | J10: 0 | K10: 2 | L10: 1 | M10: 3 | N10: 2 | O10: 1 | P10: 2 | Q10: 1 | R10: 3 | S10: 1 | T10: 0 | U10: 2 | V10: 1 | W10: 2 | X10: 4 | Y10: 1 | Z10: 2 | AA10: 4 | AB10: 1 | AC10: Messunsicherheit Ukal | AD10: 0.0005 | AE10: mm
C11: X5 | D11: 1 | E11: 3 | F11: 2 | G11: 4 | H11: 2 | I11: -1 | J11: 0 | K11: 2 | L11: 1 | M11: 3 | N11: 2 | O11: 1 | P11: 2 | Q11: 1 | R11: 3 | S11: 1 | T11: 0 | U11: 2 | V11: 1 | W11: 2 | X11: 4 | Y11: 1 | Z11: 2 | AA11: 4 | AB11: 1 | AC11: Tab.-Werte Abweichung von | AD11: 6 | AE11: mm
C12: xquer | D12: =IF(D7="","",(AVERAGE(D7:D11))) -> 1.2 | E12: =IF(E7="","",(AVERAGE(E7:E11))) -> 3.4 | F12: 2.2 | G12: 3.2 | H12: 1.8 | I12: -0.4 | J12: 0.4 | K12: 1.8 | L12: 0.6 | M12: 3.4 | N12: 1.8 | O12: 1.4 | P12: 1.8 | Q12: 1 | R12: 3.2 | S12: 1.6 | T12: 0.8 | U12: 2 | V12: 1.2 | W12: 2.4 | X12: 3.8 | Y12: 1 | Z12: 2.6 | AA12: 4.2 | AB12: 1.2 | AC12: Tab--Werte Einheit | AD12: 0.001 | AE12: mm
C13: s | D13: =IF(D7="","",STDEV(D7:D11)) -> 0.4472135955 | E13: =IF(E7="","",STDEV(E7:E11)) -> 0.5477225575 | F13: 0.4472135955 | G13: 1.303840481 | H13: 0.4472135955 | I13: 0.894427191 | J13: 0.5477225575 | K13: 0.4472135955 | L13: 0.5477225575 | M13: 0.5477225575 | N13: 0.4472135955 | O13: 0.894427191 | P13: 0.4472135955 | Q13: 0.7071067812 | R13: 0.4472135955 | S13: 0.894427191 | T13: 1.095445115 | U13: 0 | V13: 0.4472135955 | W13: 0.5477225575 | X13: 0.4472135955 | Y13: 0.7071067812 | Z13: 0.894427191 | AA13: 0.4472135955 | AB13: 0.4472135955 | AC13: Stichprobenumfang | AD13: =COUNT(D7:D11) -> 5
AC14: Prüfintervall | AD14: 2 mal pro Schicht
AC15: Cgk aus Verfahren 1 | AD15: 1.64
AC18: Merkmal
AC19: Bezeichnung
AC20: Nennwert | AD20: 6 | AE20: mm
AC21: OGW | AD21: 6.03 | AE21: mm
AC22: UGW | AD22: 5.97 | AE22: mm
AC23: Toleranz T | AD23: =AD21-AD22 -> 0.06 | AE23: mm
AC26: Eingriffsgrenzen (Vertrauensniveau 99,73 %)
AC27: OEG | AD27: =calculation!C16 -> 6.004598076 | AE27: mm
AC28: UEG | AD28: =calculation!E17 -> 5.999401924 | AE28: mm
AC29: OEGs | AD29: =calculation!C21 -> 0.003165 | AE29: mm
AC30: UEGs | AD30: =calculation!C22 -> 0.0002445 | AE30: mm
C33: Datum | AC33: Ausgewertet
C34: Uhrzeit | AC34: Genehmigt
C35: Person

Sheet calculation (hidden)
D6: Werte | E6: 1 | F6: 2 | G6: 3 | H6: 4 | I6: 5 | J6: 6 | K6: 7 | L6: 8 | M6: 9 | N6: 10 | O6: 11 | P6: 12 | Q6: 13 | R6: 14 | S6: 15 | T6: 16 | U6: 17 | V6: 18 | W6: 19 | X6: 20 | Y6: 21 | Z6: 22 | AA6: 23 | AB6: 24 | AC6: 25
D7: X1 | E7: =IF(input!D7<>"",input!D7,"") -> 2 | F7: =IF(input!E7<>"",input!E7,"") -> 4 | G7: =IF(input!F7<>"",input!F7,"") -> 3 | H7: =IF(input!G7<>"",input!G7,"") -> 3 | I7: =IF(input!H7<>"",input!H7,"") -> 2 | J7: =IF(input!I7<>"",input!I7,"") -> 0 | K7: =IF(input!J7<>"",input!J7,"") -> 1 | L7: =IF(input!K7<>"",input!K7,"") -> 1 | M7: =IF(input!L7<>"",input!L7,"") -> 0 | N7: =IF(input!M7<>"",input!M7,"") -> 4 | O7: =IF(input!N7<>"",input!N7,"") -> 2 | P7: =IF(input!O7<>"",input!O7,"") -> 3 | Q7: =IF(input!P7<>"",input!P7,"") -> 2 | R7: =IF(input!Q7<>"",input!Q7,"") -> 2 | S7: =IF(input!R7<>"",input!R7,"") -> 4 | T7: =IF(input!S7<>"",input!S7,"") -> 3 | U7: =IF(input!T7<>"",input!T7,"") -> 2 | V7: =IF(input!U7<>"",input!U7,"") -> 2 | W7: =IF(input!V7<>"",input!V7,"") -> 1 | X7: =IF(input!W7<>"",input!W7,"") -> 3 | Y7: =IF(input!X7<>"",input!X7,"") -> 4 | Z7: =IF(input!Y7<>"",input!Y7,"") -> 2 | AA7: =IF(input!Z7<>"",input!Z7,"") -> 4 | AB7: =IF(input!AA7<>"",input!AA7,"") -> 5 | AC7: =IF(input!AB7<>"",input!AB7,"") -> 2
D8: X2 | E8: =IF(input!D8<>"",input!D8,"") -> 1 | F8: =IF(input!E8<>"",input!E8,"") -> 4 | G8: =IF(input!F8<>"",input!F8,"") -> 2 | H8: =IF(input!G8<>"",input!G8,"") -> 1 | I8: =IF(input!H8<>"",input!H8,"") -> 1 | J8: =IF(input!I8<>"",input!I8,"") -> 1 | K8: =IF(input!J8<>"",input!J8,"") -> 1 | L8: =IF(input!K8<>"",input!K8,"") -> 2 | M8: =IF(input!L8<>"",input!L8,"") -> 0 | N8: =IF(input!M8<>"",input!M8,"") -> 4 | O8: =IF(input!N8<>"",input!N8,"") -> 1 | P8: =IF(input!O8<>"",input!O8,"") -> 1 | Q8: =IF(input!P8<>"",input!P8,"") -> 1 | R8: =IF(input!Q8<>"",input!Q8,"") -> 0 | S8: =IF(input!R8<>"",input!R8,"") -> 3 | T8: =IF(input!S8<>"",input!S8,"") -> 2 | U8: =IF(input!T8<>"",input!T8,"") -> 2 | V8: =IF(input!U8<>"",input!U8,"") -> 2 | W8: =IF(input!V8<>"",input!V8,"") -> 2 | X8: =IF(input!W8<>"",input!W8,"") -> 3 | Y8: =IF(input!X8<>"",input!X8,"") -> 3 | Z8: =IF(input!Y8<>"",input!Y8,"") -> 0 | AA8: =IF(input!Z8<>"",input!Z8,"") -> 3 | AB8: =IF(input!AA8<>"",input!AA8,"") -> 4 | AC8: =IF(input!AB8<>"",input!AB8,"") -> 1
D9: X3 | E9: =IF(input!D9<>"",input!D9,"") -> 1 | F9: =IF(input!E9<>"",input!E9,"") -> 3 | G9: =IF(input!F9<>"",input!F9,"") -> 2 | H9: =IF(input!G9<>"",input!G9,"") -> 4 | I9: =IF(input!H9<>"",input!H9,"") -> 2 | J9: =IF(input!I9<>"",input!I9,"") -> -1 | K9: =IF(input!J9<>"",input!J9,"") -> 0 | L9: =IF(input!K9<>"",input!K9,"") -> 2 | M9: =IF(input!L9<>"",input!L9,"") -> 1 | N9: =IF(input!M9<>"",input!M9,"") -> 3 | O9: =IF(input!N9<>"",input!N9,"") -> 2 | P9: =IF(input!O9<>"",input!O9,"") -> 1 | Q9: =IF(input!P9<>"",input!P9,"") -> 2 | R9: =IF(input!Q9<>"",input!Q9,"") -> 1 | S9: =IF(input!R9<>"",input!R9,"") -> 3 | T9: =IF(input!S9<>"",input!S9,"") -> 1 | U9: =IF(input!T9<>"",input!T9,"") -> 0 | V9: =IF(input!U9<>"",input!U9,"") -> 2 | W9: =IF(input!V9<>"",input!V9,"") -> 1 | X9: =IF(input!W9<>"",input!W9,"") -> 2 | Y9: =IF(input!X9<>"",input!X9,"") -> 4 | Z9: =IF(input!Y9<>"",input!Y9,"") -> 1 | AA9: =IF(input!Z9<>"",input!Z9,"") -> 2 | AB9: =IF(input!AA9<>"",input!AA9,"") -> 4 | AC9: =IF(input!AB9<>"",input!AB9,"") -> 1
D10: X4 | E10: =IF(input!D10<>"",input!D10,"") -> 1 | F10: =IF(input!E10<>"",input!E10,"") -> 3 | G10: =IF(input!F10<>"",input!F10,"") -> 2 | H10: =IF(input!G10<>"",input!G10,"") -> 4 | I10: =IF(input!H10<>"",input!H10,"") -> 2 | J10: =IF(input!I10<>"",input!I10,"") -> -1 | K10: =IF(input!J10<>"",input!J10,"") -> 0 | L10: =IF(input!K10<>"",input!K10,"") -> 2 | M10: =IF(input!L10<>"",input!L10,"") -> 1 | N10: =IF(input!M10<>"",input!M10,"") -> 3 | O10: =IF(input!N10<>"",input!N10,"") -> 2 | P10: =IF(input!O10<>"",input!O10,"") -> 1 | Q10: =IF(input!P10<>"",input!P10,"") -> 2 | R10: =IF(input!Q10<>"",input!Q10,"") -> 1 | S10: =IF(input!R10<>"",input!R10,"") -> 3 | T10: =IF(input!S10<>"",input!S10,"") -> 1 | U10: =IF(input!T10<>"",input!T10,"") -> 0 | V10: =IF(input!U10<>"",input!U10,"") -> 2 | W10: =IF(input!V10<>"",input!V10,"") -> 1 | X10: =IF(input!W10<>"",input!W10,"") -> 2 | Y10: =IF(input!X10<>"",input!X10,"") -> 4 | Z10: =IF(input!Y10<>"",input!Y10,"") -> 1 | AA10: =IF(input!Z10<>"",input!Z10,"") -> 2 | AB10: =IF(input!AA10<>"",input!AA10,"") -> 4 | AC10: =IF(input!AB10<>"",input!AB10,"") -> 1
D11: X5 | E11: =IF(input!D11<>"",input!D11,"") -> 1 | F11: =IF(input!E11<>"",input!E11,"") -> 3 | G11: =IF(input!F11<>"",input!F11,"") -> 2 | H11: =IF(input!G11<>"",input!G11,"") -> 4 | I11: =IF(input!H11<>"",input!H11,"") -> 2 | J11: =IF(input!I11<>"",input!I11,"") -> -1 | K11: =IF(input!J11<>"",input!J11,"") -> 0 | L11: =IF(input!K11<>"",input!K11,"") -> 2 | M11: =IF(input!L11<>"",input!L11,"") -> 1 | N11: =IF(input!M11<>"",input!M11,"") -> 3 | O11: =IF(input!N11<>"",input!N11,"") -> 2 | P11: =IF(input!O11<>"",input!O11,"") -> 1 | Q11: =IF(input!P11<>"",input!P11,"") -> 2 | R11: =IF(input!Q11<>"",input!Q11,"") -> 1 | S11: =IF(input!R11<>"",input!R11,"") -> 3 | T11: =IF(input!S11<>"",input!S11,"") -> 1 | U11: =IF(input!T11<>"",input!T11,"") -> 0 | V11: =IF(input!U11<>"",input!U11,"") -> 2 | W11: =IF(input!V11<>"",input!V11,"") -> 1 | X11: =IF(input!W11<>"",input!W11,"") -> 2 | Y11: =IF(input!X11<>"",input!X11,"") -> 4 | Z11: =IF(input!Y11<>"",input!Y11,"") -> 1 | AA11: =IF(input!Z11<>"",input!Z11,"") -> 2 | AB11: =IF(input!AA11<>"",input!AA11,"") -> 4 | AC11: =IF(input!AB11<>"",input!AB11,"") -> 1
D12: Mittelwert | E12: =input!D12 -> 1.2 | F12: =input!E12 -> 3.4 | G12: =input!F12 -> 2.2 | H12: =input!G12 -> 3.2 | I12: =input!H12 -> 1.8 | J12: =input!I12 -> -0.4 | K12: =input!J12 -> 0.4 | L12: =input!K12 -> 1.8 | M12: =input!L12 -> 0.6 | N12: =input!M12 -> 3.4 | O12: =input!N12 -> 1.8 | P12: =input!O12 -> 1.4 | Q12: =input!P12 -> 1.8 | R12: =input!Q12 -> 1 | S12: =input!R12 -> 3.2 | T12: =input!S12 -> 1.6 | U12: =input!T12 -> 0.8 | V12: =input!U12 -> 2 | W12: =input!V12 -> 1.2 | X12: =input!W12 -> 2.4 | Y12: =input!X12 -> 3.8 | Z12: =input!Y12 -> 1 | AA12: =input!Z12 -> 2.6 | AB12: =input!AA12 -> 4.2 | AC12: =input!AB12 -> 1.2
D13: Standardabweichung | E13: =input!D13 -> 0.4472135955 | F13: =input!E13 -> 0.5477225575 | G13: =input!F13 -> 0.4472135955 | H13: =input!G13 -> 1.303840481 | I13: =input!H13 -> 0.4472135955 | J13: =input!I13 -> 0.894427191 | K13: =input!J13 -> 0.5477225575 | L13: =input!K13 -> 0.4472135955 | M13: =input!L13 -> 0.5477225575 | N13: =input!M13 -> 0.5477225575 | O13: =input!N13 -> 0.4472135955 | P13: =input!O13 -> 0.894427191 | Q13: =input!P13 -> 0.4472135955 | R13: =input!Q13 -> 0.7071067812 | S13: =input!R13 -> 0.4472135955 | T13: =input!S13 -> 0.894427191 | U13: =input!T13 -> 1.095445115 | V13: =input!U13 -> 0 | W13: =input!V13 -> 0.4472135955 | X13: =input!W13 -> 0.5477225575 | Y13: =input!X13 -> 0.4472135955 | Z13: =input!Y13 -> 0.7071067812 | AA13: =input!Z13 -> 0.894427191 | AB13: =input!AA13 -> 0.4472135955 | AC13: =input!AB13 -> 0.4472135955
D15: Karte1
C16: =E27+((3/SQRT(3)*E26/40)) -> 6.004598076 | D16: OEG | E16: =C16 -> 6.004598076 | F16: =E16 -> 6.004598076 | G16: =F16 -> 6.004598076 | H16: 6.004598076 | I16: 6.004598076 | J16: 6.004598076 | K16: 6.004598076 | L16: 6.004598076 | M16: 6.004598076 | N16: 6.004598076 | O16: 6.004598076 | P16: 6.004598076 | Q16: 6.004598076 | R16: 6.004598076 | S16: 6.004598076 | T16: 6.004598076 | U16: 6.004598076 | V16: 6.004598076 | W16: 6.004598076 | X16: 6.004598076 | Y16: 6.004598076 | Z16: 6.004598076 | AA16: 6.004598076 | AB16: 6.004598076 | AC16: 6.004598076
C17: =E27-((3/SQRT(3)*E26/40)) -> 5.999401924 | D17: UEG | E17: =C17 -> 5.999401924 | F17: =E17 -> 5.999401924 | G17: =F17 -> 5.999401924 | H17: 5.999401924 | I17: 5.999401924 | J17: 5.999401924 | K17: 5.999401924 | L17: 5.999401924 | M17: 5.999401924 | N17: 5.999401924 | O17: 5.999401924 | P17: 5.999401924 | Q17: 5.999401924 | R17: 5.999401924 | S17: 5.999401924 | T17: 5.999401924 | U17: 5.999401924 | V17: 5.999401924 | W17: 5.999401924 | X17: 5.999401924 | Y17: 5.999401924 | Z17: 5.999401924 | AA17: 5.999401924 | AB17: 5.999401924 | AC17: 5.999401924
C18: =E27 -> 6.002 | D18: xm | E18: =IF(E$7<>"",$C$18,#N/A) -> 6.002 | F18: 6.002 | G18: 6.002 | H18: 6.002 | I18: 6.002 | J18: 6.002 | K18: 6.002 | L18: 6.002 | M18: 6.002 | N18: 6.002 | O18: 6.002 | P18: 6.002 | Q18: 6.002 | R18: 6.002 | S18: 6.002 | T18: 6.002 | U18: 6.002 | V18: 6.002 | W18: 6.002 | X18: 6.002 | Y18: 6.002 | Z18: 6.002 | AA18: 6.002 | AB18: 6.002 | AC18: 6.002
D19: Wert | E19: =IF(E7<>"",(E12*input!$AD$12)+input!$AD$11,#N/A) -> 6.0012 | F19: =IF(F7<>"",(F12*input!$AD$12)+input!$AD$11,#N/A) -> 6.0034 | G19: =IF(G7<>"",(G12*input!$AD$12)+input!$AD$11,#N/A) -> 6.0022 | H19: =IF(H7<>"",(H12*input!$AD$12)+input!$AD$11,#N/A) -> 6.0032 | I19: =IF(I7<>"",(I12*input!$AD$12)+input!$AD$11,#N/A) -> 6.0018 | J19: =IF(J7<>"",(J12*input!$AD$12)+input!$AD$11,#N/A) -> 5.9996 | K19: =IF(K7<>"",(K12*input!$AD$12)+input!$AD$11,#N/A) -> 6.0004 | L19: =IF(L7<>"",(L12*input!$AD$12)+input!$AD$11,#N/A) -> 6.0018 | M19: =IF(M7<>"",(M12*input!$AD$12)+input!$AD$11,#N/A) -> 6.0006 | N19: =IF(N7<>"",(N12*input!$AD$12)+input!$AD$11,#N/A) -> 6.0034 | O19: =IF(O7<>"",(O12*input!$AD$12)+input!$AD$11,#N/A) -> 6.0018 | P19: =IF(P7<>"",(P12*input!$AD$12)+input!$AD$11,#N/A) -> 6.0014 | Q19: =IF(Q7<>"",(Q12*input!$AD$12)+input!$AD$11,#N/A) -> 6.0018 | R19: =IF(R7<>"",(R12*input!$AD$12)+input!$AD$11,#N/A) -> 6.001 | S19: =IF(S7<>"",(S12*input!$AD$12)+input!$AD$11,#N/A) -> 6.0032 | T19: =IF(T7<>"",(T12*input!$AD$12)+input!$AD$11,#N/A) -> 6.0016 | U19: =IF(U7<>"",(U12*input!$AD$12)+input!$AD$11,#N/A) -> 6.0008 | V19: =IF(V7<>"",(V12*input!$AD$12)+input!$AD$11,#N/A) -> 6.002 | W19: =IF(W7<>"",(W12*input!$AD$12)+input!$AD$11,#N/A) -> 6.0012 | X19: =IF(X7<>"",(X12*input!$AD$12)+input!$AD$11,#N/A) -> 6.0024 | Y19: =IF(Y7<>"",(Y12*input!$AD$12)+input!$AD$11,#N/A) -> 6.0038 | Z19: =IF(Z7<>"",(Z12*input!$AD$12)+input!$AD$11,#N/A) -> 6.001 | AA19: =IF(AA7<>"",(AA12*input!$AD$12)+input!$AD$11,#N/A) -> 6.0026 | AB19: =IF(AB7<>"",(AB12*input!$AD$12)+input!$AD$11,#N/A) -> 6.0042 | AC19: =IF(AC7<>"",(AC12*input!$AD$12)+input!$AD$11,#N/A) -> 6.0012
C21: =H37*E26/40 -> 0.003165 | D21: OEGS | E21: =C21 -> 0.003165 | F21: =E21 -> 0.003165 | G21: =F21 -> 0.003165 | H21: 0.003165 | I21: 0.003165 | J21: 0.003165 | K21: 0.003165 | L21: 0.003165 | M21: 0.003165 | N21: 0.003165 | O21: 0.003165 | P21: 0.003165 | Q21: 0.003165 | R21: 0.003165 | S21: 0.003165 | T21: 0.003165 | U21: 0.003165 | V21: 0.003165 | W21: 0.003165 | X21: 0.003165 | Y21: 0.003165 | Z21: 0.003165 | AA21: 0.003165 | AB21: 0.003165 | AC21: 0.003165
C22: =G37*E26/40 -> 0.0002445 | D22: UEGS | E22: =C22 -> 0.0002445 | F22: =E22 -> 0.0002445 | G22: =F22 -> 0.0002445 | H22: 0.0002445 | I22: 0.0002445 | J22: 0.0002445 | K22: 0.0002445 | L22: 0.0002445 | M22: 0.0002445 | N22: 0.0002445 | O22: 0.0002445 | P22: 0.0002445 | Q22: 0.0002445 | R22: 0.0002445 | S22: 0.0002445 | T22: 0.0002445 | U22: 0.0002445 | V22: 0.0002445 | W22: 0.0002445 | X22: 0.0002445 | Y22: 0.0002445 | Z22: 0.0002445 | AA22: 0.0002445 | AB22: 0.0002445 | AC22: 0.0002445
D23: Wert | E23: =IF(E7<>"",(E13*input!$AD$12),#N/A) -> 0.0004472135955 | F23: =IF(F7<>"",(F13*input!$AD$12),#N/A) -> 0.0005477225575 | G23: =IF(G7<>"",(G13*input!$AD$12),#N/A) -> 0.0004472135955 | H23: =IF(H7<>"",(H13*input!$AD$12),#N/A) -> 0.001303840481 | I23: =IF(I7<>"",(I13*input!$AD$12),#N/A) -> 0.0004472135955 | J23: =IF(J7<>"",(J13*input!$AD$12),#N/A) -> 0.000894427191 | K23: =IF(K7<>"",(K13*input!$AD$12),#N/A) -> 0.0005477225575 | L23: =IF(L7<>"",(L13*input!$AD$12),#N/A) -> 0.0004472135955 | M23: =IF(M7<>"",(M13*input!$AD$12),#N/A) -> 0.0005477225575 | N23: =IF(N7<>"",(N13*input!$AD$12),#N/A) -> 0.0005477225575 | O23: =IF(O7<>"",(O13*input!$AD$12),#N/A) -> 0.0004472135955 | P23: =IF(P7<>"",(P13*input!$AD$12),#N/A) -> 0.000894427191 | Q23: =IF(Q7<>"",(Q13*input!$AD$12),#N/A) -> 0.0004472135955 | R23: =IF(R7<>"",(R13*input!$AD$12),#N/A) -> 0.0007071067812 | S23: =IF(S7<>"",(S13*input!$AD$12),#N/A) -> 0.0004472135955 | T23: =IF(T7<>"",(T13*input!$AD$12),#N/A) -> 0.000894427191 | U23: =IF(U7<>"",(U13*input!$AD$12),#N/A) -> 0.001095445115 | V23: =IF(V7<>"",(V13*input!$AD$12),#N/A) -> 0 | W23: =IF(W7<>"",(W13*input!$AD$12),#N/A) -> 0.0004472135955 | X23: =IF(X7<>"",(X13*input!$AD$12),#N/A) -> 0.0005477225575 | Y23: =IF(Y7<>"",(Y13*input!$AD$12),#N/A) -> 0.0004472135955 | Z23: =IF(Z7<>"",(Z13*input!$AD$12),#N/A) -> 0.0007071067812 | AA23: =IF(AA7<>"",(AA13*input!$AD$12),#N/A) -> 0.000894427191 | AB23: =IF(AB7<>"",(AB13*input!$AD$12),#N/A) -> 0.0004472135955 | AC23: =IF(AC7<>"",(AC13*input!$AD$12),#N/A) -> 0.0004472135955
D26: Toleranz | E26: =input!AD23 -> 0.06 | G26: =TODAY() -> 2024-04-20
D27: xm | E27: =IF(G26=G27,input!AD9,"") -> 6.002 | G27: 2024-04-20
D28: Werte in | E28: =input!AE12 -> mm
D29: Stichprobenumfang | E29: =IF(G26=G27,input!AD13,0) -> 5
F32: UP | G32: BEUN | H32: BEOB | I32: EE
E33: 3 | F33: 3 | G33: 0.037 | H33: 2.571 | I33: 3.32
E34: 4 | F34: 3 | G34: 0.1 | H34: 2.283 | I34: 3.399
E35: 5 | F35: 3 | G35: 0.163 | H35: 2.11 | I35: 3.46
G36: BEUN | H36: BEOB | I36: EE
G37: =VLOOKUP(E29,E33:I35,3,TRUE) -> 0.163 | H37: =VLOOKUP(E29,E33:I35,4,TRUE) -> 2.11 | I37: =VLOOKUP(E29,E33:I35,4,TRUE) -> 2.11

Sheet example
B4: Messwerte | C4: 1 | D4: 2 | E4: 3 | F4: 4 | G4: 5 | H4: 6 | I4: 7 | J4: 8 | K4: 9 | L4: 10 | M4: 11 | N4: 12 | O4: 13 | P4: 14 | Q4: 15 | R4: 16 | S4: 17 | T4: 18 | U4: 19 | V4: 20 | W4: 21 | X4: 22 | Y4: 23 | Z4: 24 | AA4: 25 | AB4: Bezeichnung Messmittel
B5: X1 | C5: 2 | D5: 4 | E5: 3 | F5: 3 | G5: 2 | H5: 0 | I5: 1 | J5: 1 | K5: 0 | L5: 4 | M5: 2 | N5: 3 | O5: 2 | P5: 2 | Q5: 4 | R5: 3 | S5: 2 | T5: 2 | U5: 1 | V5: 3 | W5: 4 | X5: 2 | Y5: 4 | Z5: 5 | AA5: 2 | AB5: Messmittel Nr.
B6: X2 | C6: 1 | D6: 4 | E6: 2 | F6: 1 | G6: 1 | H6: 1 | I6: 1 | J6: 2 | K6: 0 | L6: 4 | M6: 1 | N6: 1 | O6: 1 | P6: 0 | Q6: 3 | R6: 2 | S6: 2 | T6: 2 | U6: 2 | V6: 3 | W6: 3 | X6: 0 | Y6: 3 | Z6: 4 | AA6: 1 | AB6: Bezeichnung Einstellnormal
B7: X3 | C7: 1 | D7: 3 | E7: 2 | F7: 4 | G7: 2 | H7: -1 | I7: 0 | J7: 2 | K7: 1 | L7: 3 | M7: 2 | N7: 1 | O7: 2 | P7: 1 | Q7: 3 | R7: 1 | S7: 0 | T7: 2 | U7: 1 | V7: 2 | W7: 4 | X7: 1 | Y7: 2 | Z7: 4 | AA7: 1 | AB7: Referenzwert xm | AC7: 6.002 | AD7: mm
B8: X4 | C8: 1 | D8: 3 | E8: 2 | F8: 4 | G8: 2 | H8: -1 | I8: 0 | J8: 2 | K8: 1 | L8: 3 | M8: 2 | N8: 1 | O8: 2 | P8: 1 | Q8: 3 | R8: 1 | S8: 0 | T8: 2 | U8: 1 | V8: 2 | W8: 4 | X8: 1 | Y8: 2 | Z8: 4 | AA8: 1 | AB8: Messunsicherheit Ukal | AC8: 0.0005 | AD8: mm
B9: X5 | C9: 1 | D9: 3 | E9: 2 | F9: 4 | G9: 2 | H9: -1 | I9: 0 | J9: 2 | K9: 1 | L9: 3 | M9: 2 | N9: 1 | O9: 2 | P9: 1 | Q9: 3 | R9: 1 | S9: 0 | T9: 2 | U9: 1 | V9: 2 | W9: 4 | X9: 1 | Y9: 2 | Z9: 4 | AA9: 1 | AB9: Tab.-Werte Abweichung von | AC9: 6 | AD9: mm
B10: xquer | C10: 1.2 | D10: 3.4 | E10: 2.2 | F10: 3.2 | G10: 1.8 | H10: -0.4 | I10: 0.4 | J10: 1.8 | K10: 0.6 | L10: 3.4 | M10: 1.8 | N10: 1.4 | O10: 1.8 | P10: 1 | Q10: 3.2 | R10: 1.6 | S10: 0.8 | T10: 2 | U10: 1.2 | V10: 2.4 | W10: 3.8 | X10: 1 | Y10: 2.6 | Z10: 4.2 | AA10: 1.2 | AB10: Tab--Werte Einheit | AC10: 0.001 | AD10: mm
B11: s | C11: 0.4472135955 | D11: 0.5477225575 | E11: 0.4472135955 | F11: 1.303840481 | G11: 0.4472135955 | H11: 0.894427191 | I11: 0.5477225575 | J11: 0.4472135955 | K11: 0.5477225575 | L11: 0.5477225575 | M11: 0.4472135955 | N11: 0.894427191 | O11: 0.4472135955 | P11: 0.7071067812 | Q11: 0.4472135955 | R11: 0.894427191 | S11: 1.095445115 | T11: 0 | U11: 0.4472135955 | V11: 0.5477225575 | W11: 0.4472135955 | X11: 0.7071067812 | Y11: 0.894427191 | Z11: 0.4472135955 | AA11: 0.4472135955 | AB11: Stichprobenumfang | AC11: 5
AB12: Prüfintervall | AC12: 2 mal pro Schicht
AB13: Cgk aus Verfahren 1 | AC13: 1.64
AB16: Merkmal
AB17: Bezeichnung
AB18: Nennwert | AC18: 6 | AD18: mm
AB19: OGW | AC19: 6.03 | AD19: mm
AB20: UGW | AC20: 5.97 | AD20: mm
AB21: Toleranz T | AC21: 0.06 | AD21: mm
AB24: Eingriffsgrenzen (Vertrauensniveau 99,73 %)
AB25: OEG | AC25: 0.0002445 | AD25: mm
AB26: UEG | AC26: 5.999401924 | AD26: mm
AB27: OEGs | AC27: 0.003165 | AD27: mm
AB28: UEGs | AC28: 0.0002445 | AD28: mm

Sheet info
C2: Sie benutzen eine Vorlage von www.sixsigmblackbelt.de
C4: benötigen Sie Unterstützung
C5: wenden Sie sich bitte per Mail an | H5: roland.schnurr@sixsigmablackbelt.de
C6: https://www.sixsigmablackbelt.de
